bitfinex/quotes_BTCUSD_20251010
["timestamp","ask_amount","ask_price","bid_price","bid_amount"]
[1760074032322,0.32050998,121530.0,121520.0,0.73487626]
[1760074032739,0.08794998,121530.0,121520.0,0.73487626]
[1760074032943,0.32050998,121530.0,121520.0,0.73487626]
[1760074033356,0.48507839,121530.0,121520.0,0.73487626]
[1760074033673,0.39947839,121530.0,121520.0,0.73487781]
[1760074033893,0.48507839,121530.0,121520.0,0.73487781]
[1760074034117,0.48507839,121530.0,121520.0,0.75949781]
[1760074034990,0.48507839,121530.0,121520.0,0.73487781]
[1760074035204,0.48272841,121530.0,121520.0,0.73487781]
[1760074035637,1.05924669,121530.0,121520.0,0.00323275]
[1760074035854,1.08092669,121530.0,121520.0,0.00323275]
[1760074036099,1.22732325,121530.0,121520.0,0.00323275]
[1760074036316,0.99460325,121530.0,121520.0,0.00323275]
[1760074036525,1.2356894,121530.0,121520.0,0.00323275]
[1760074036732,0.99460325,121530.0,121520.0,0.00323275]
[1760074036966,1.22736325,121530.0,121520.0,0.00323275]
[1760074037168,1.22736325,121530.0,121520.0,0.00029786]
[1760074037371,1.26038403,121530.0,121520.0,0.00029786]
[1760074037789,1.26860088,121530.0,121520.0,0.00029786]
[1760074038323,1.86608638,121530.0,121520.0,0.00029786]
[1760074038533,1.29739745,121530.0,121520.0,0.00029786]
[1760074038956,1.81180089,121530.0,121520.0,0.00029786]
[1760074039172,0.6283806,121530.0,121520.0,0.00029786]
[1760074039383,1.2892206,121530.0,121520.0,0.00029786]
[1760074039594,1.28922158,121530.0,121520.0,0.00029786]
[1760074039990,0.6752068,121530.0,121520.0,0.00029786]
[1760074040265,1.3360468,121530.0,121520.0,0.00029786]
[1760074040473,1.34422174,121530.0,121520.0,0.00029786]
[1760074040684,1.3360468,121530.0,121520.0,0.00029786]
[1760074041299,0.69730583,121530.0,121520.0,0.00029786]
[1760074041512,1.35814583,121530.0,121520.0,0.00029786]
[1760074041925,1.31132061,121530.0,121520.0,0.00029786]
[1760074042132,1.31948294,121530.0,121520.0,0.00029786]
[1760074042550,1.22572061,121530.0,121520.0,0.00029786]
[1760074042896,0.65048061,121530.0,121520.0,0.00029786]
[1760074043100,1.31132061,121530.0,121520.0,0.00029786]
[1760074043307,1.39131741,121530.0,121520.0,0.00029786]
[1760074046012,1.39945837,121530.0,121520.0,0.00029786]
[1760074046215,1.42913344,121530.0,121520.0,0.00029786]
[1760074047176,1.40703441,121530.0,121520.0,0.00029786]
[1760074047397,1.02324494,121530.0,121520.0,0.00029786]
[1760074047632,1.45144494,121530.0,121520.0,0.00029786]
[1760074048077,1.40711441,121530.0,121520.0,0.00029786]
[1760074048446,0.54368485,121530.0,121520.0,0.00029786]
[1760074048636,0.97188485,121530.0,121520.0,0.00029786]
[1760074048846,0.30286389,121530.0,121520.0,0.00029786]
[1760074049051,0.88062183,121530.0,121520.0,0.00029786]
[1760074049477,0.88066183,121530.0,121520.0,0.00029786]
[1760074049881,0.85851017,121530.0,121520.0,0.00029786]
[1760074050091,0.19759017,121530.0,121520.0,0.00029786]
[1760074050257,0.84083095,121530.0,121520.0,0.00029786]
[1760074050461,0.62579017,121530.0,121520.0,0.00029786]
[1760074050693,0.85851017,121530.0,121520.0,0.00029786]
[1760074051466,0.21974183,121530.0,121520.0,0.00029786]
[1760074051675,0.54462261,121530.0,121520.0,0.38670307]
[1760074051873,0.88066183,121530.0,121520.0,0.38670307]
[1760074052190,0.62579017,121530.0,121520.0,0.38670307]
[1760074052401,0.88066183,121530.0,121520.0,0.38670307]
[1760074053017,0.88066183,121530.0,121520.0,0.00029786]
[1760074055312,0.88071457,121530.0,121520.0,0.00029786]
[1760074055699,0.88067457,121530.0,121520.0,0.00029786]
[1760074056324,0.19764291,121530.0,121520.0,0.00029786]
[1760074056588,0.84084369,121530.0,121520.0,0.38670307]
[1760074056823,0.62584291,121530.0,121520.0,0.00029786]
[1760074057026,0.85852291,121530.0,121520.0,0.38670307]
[1760074058322,0.54020291,121530.0,121520.0,0.38670307]
[1760074058537,0.64799457,121530.0,121520.0,0.38670307]
[1760074058740,0.21979457,121530.0,121520.0,0.38670307]
[1760074058922,0.86299535,121530.0,121520.0,0.38670307]
[1760074059155,0.88067457,121530.0,121520.0,0.38670307]
[1760074059587,0.88067457,121530.0,121520.0,0.00029786]
[1760074059805,0.64799457,121530.0,121520.0,0.38670307]
[1760074060022,0.88067457,121530.0,121520.0,0.38670307]
[1760074060239,0.64803457,121530.0,121520.0,0.38670307]
[1760074060455,0.49116883,121530.0,121520.0,0.95287024]
[1760074060672,0.06292883,121530.0,121520.0,0.96435024]
[1760074060887,0.10873795,121530.0,121520.0,0.98776024]
[1760074061307,0.10873795,121530.0,121520.0,0.99595068]
[1760074061527,0.34141795,121530.0,121520.0,0.99595068]
[1760074061740,0.34141795,121530.0,121520.0,0.96435024]
[1760074061946,0.34141795,121530.0,121520.0,0.56646503]
[1760074062157,0.10873795,121530.0,121520.0,0.56646503]
[1760074062375,0.34141795,121530.0,121520.0,0.56646503]
[1760074062617,0.34141795,121530.0,121520.0,0.57794503]
[1760074062831,0.34141795,121530.0,121520.0,0.93769024]
[1760074063040,0.34141795,121530.0,121520.0,0.95287024]
[1760074063445,0.34141795,121530.0,121520.0,0.56646503]
[1760074063656,0.34141795,121530.0,121520.0,0.16487982]
[1760074063861,0.10873795,121530.0,121520.0,0.55128503]
[1760074064087,0.34137795,121530.0,121520.0,0.56646503]
[1760074064470,0.10873795,121530.0,121520.0,0.57794503]
[1760074064674,0.34137795,121530.0,121520.0,0.57794503]
[1760074065026,0.34139385,121530.0,121520.0,0.57794503]
[1760074065478,0.34139385,121530.0,121520.0,0.98776024]
[1760074065479,0.25575385,121530.0,121520.0,0.98776024]
[1760074065688,0.34139385,121530.0,121520.0,0.98776024]
[1760074066475,0.32598267,121530.0,121520.0,0.98776024]
[1760074068234,0.00770267,121530.0,121520.0,0.98776024]
[1760074068442,0.31824,121530.0,121520.0,0.98776024]
[1760074068647,0.09334267,121530.0,121520.0,0.98776024]
[1760074068852,0.32594267,121530.0,121520.0,0.98776024]
[1760074069487,0.32594267,121530.0,121520.0,0.96435024]
[1760074070971,0.32594267,121530.0,121520.0,0.57794503]
[1760074071360,0.32594267,121530.0,121520.0,0.60178503]
[1760074071571,0.32590267,121530.0,121520.0,0.98819024]
[1760074072355,0.3182,121530.0,121520.0,0.98819024]
[1760074074437,0.3182,121530.0,121520.0,0.21537982]
[1760074074650,0.16455539,121540.0,121520.0,0.21537982]
[1760074074849,0.3182,121530.0,121520.0,0.19124196]
[1760074075136,0.3182,121530.0,121520.0,0.96405238]
[1760074075342,0.08564,121530.0,121520.0,0.17606196]
[1760074075554,0.27522795,121530.0,121510.0,0.58720011]
[1760074075776,0.23252,121520.0,121510.0,0.2007949]
[1760074075984,0.23252,121520.0,121510.0,0.57572011]
[1760074076684,0.23256,121520.0,121510.0,0.1893149]
[1760074076902,0.23256,121520.0,121510.0,0.59136011]
[1760074077318,0.23256,121520.0,121510.0,0.60338011]
[1760074078126,0.23256,121520.0,121490.0,0.18491185]
[1760074078127,1.20693429,121520.0,121490.0,0.18491185]
[1760074078365,0.1645955,121510.0,121500.0,0.16460895]
[1760074078596,0.23264,121510.0,121500.0,0.55101416]
[1760074078829,0.23264,121510.0,121500.0,0.56665416]
[1760074079088,0.3972355,121510.0,121500.0,0.16460895]
[1760074079331,0.3972355,121510.0,121490.0,0.65443912]
[1760074079542,0.08564,121500.0,121490.0,0.65443912]
[1760074079750,0.08564,121500.0,121490.0,0.69391912]
[1760074080392,0.25024905,121500.0,121490.0,0.25597579]
[1760074080590,0.48292905,121500.0,121480.0,0.56305762]
[1760074080809,0.48292905,121500.0,121480.0,0.66197084]
[1760074081353,0.1646226,121490.0,121480.0,0.24790563]
[1760074081565,0.3973026,121490.0,121480.0,0.63431084]
[1760074081786,0.1646226,121490.0,121480.0,0.63431084]
[1760074082001,0.23268,121490.0,121480.0,0.63431084]
[1760074084166,0.23268,121490.0,121480.0,0.64997084]
[1760074084347,0.23268,121490.0,121480.0,1.04828605]
[1760074084479,0.51542527,121510.0,121490.0,0.1646226]
[1760074084690,0.31832,121500.0,121490.0,0.1765326]
[1760074084933,0.31832,121500.0,121490.0,0.1921926]
[1760074085350,0.31832,121500.0,121490.0,0.19403231]
[1760074085713,0.31832,121500.0,121490.0,0.58043752]
[1760074086195,0.08564,121500.0,121490.0,0.58043752]
[1760074086400,0.25024905,121500.0,121490.0,0.00183971]
[1760074086613,0.48296905,121500.0,121490.0,0.00183971]
[1760074086820,0.48296905,121500.0,121490.0,0.38824492]
[1760074087245,0.25024905,121500.0,121490.0,0.00183971]
[1760074087453,0.48296905,121500.0,121490.0,0.00183971]
[1760074088093,0.17282527,121510.0,121490.0,0.55286752]
[1760074088271,0.17282527,121510.0,121500.0,0.38640521]
[1760074088272,0.51542527,121510.0,121500.0,0.38640521]
[1760074088505,0.83378527,121510.0,121500.0,0.38773088]
[1760074089288,0.83378527,121510.0,121500.0,0.00132567]
[1760074089471,0.17282527,121510.0,121500.0,0.00132567]
[1760074089672,0.83378527,121510.0,121500.0,0.00132567]
[1760074091122,0.17282527,121510.0,121500.0,0.00132567]
[1760074091512,0.83378527,121510.0,121500.0,0.00132567]
[1760074092264,0.17282527,121510.0,121500.0,0.00132567]
[1760074092464,0.83378527,121510.0,121500.0,0.00132567]
[1760074095558,0.60106527,121510.0,121500.0,0.00132567]
[1760074095740,0.83374527,121510.0,121500.0,0.00132567]
[1760074097003,0.83382527,121510.0,121500.0,0.00132567]
[1760074097422,0.17282527,121510.0,121500.0,0.00132567]
[1760074097627,0.83378527,121510.0,121500.0,0.00132567]
[1760074099480,0.17282527,121510.0,121500.0,0.00132567]
[1760074099914,0.00297824,121520.0,121510.0,0.1645955]
[1760074100120,0.1675602,121520.0,121510.0,0.1921655]
[1760074100360,0.1675602,121520.0,121500.0,0.17651905]
[1760074100361,0.2532002,121520.0,121500.0,0.17651905]
[1760074100611,0.1645955,121510.0,121500.0,0.57858426]
[1760074101083,0.1645955,121510.0,121500.0,0.56292426]
[1760074101570,0.2532002,121520.0,121500.0,0.56292426]
[1760074101815,0.23272,121510.0,121500.0,0.57858426]
[1760074102009,0.23268,121510.0,121500.0,0.57858426]
[1760074102754,0.23268,121510.0,121490.0,0.20948855]
[1760074102956,0.23272,121500.0,121490.0,0.28070061]
[1760074103286,0.23272,121500.0,121490.0,0.66710582]
[1760074103535,0.1645955,121510.0,121490.0,0.66710582]
[1760074103769,0.1645955,121510.0,121500.0,0.16460905]
[1760074103997,0.3973555,121510.0,121500.0,0.16460905]
[1760074104228,0.3973555,121510.0,121490.0,0.67901582]
[1760074105144,0.1645955,121510.0,121490.0,0.58398376]
[1760074105359,0.23276,121500.0,121490.0,0.58398376]
[1760074105817,0.23276,121500.0,121490.0,0.58582347]
[1760074106672,0.23272,121500.0,121490.0,0.60148347]
[1760074107272,0.23272,121500.0,121490.0,0.61339347]
[1760074108434,0.1645955,121510.0,121500.0,0.16460905]
[1760074108645,0.3973155,121510.0,121500.0,0.16460905]
[1760074108847,0.3973155,121510.0,121500.0,0.55101426]
[1760074109143,0.1645955,121510.0,121500.0,0.55101426]
[1760074109474,0.3973155,121510.0,121500.0,0.55101426]
[1760074109890,0.3973155,121510.0,121500.0,0.57574057]
[1760074110389,0.3973155,121510.0,121500.0,0.41113152]
[1760074110745,0.3972755,121510.0,121500.0,0.02472631]
[1760074112142,0.39645322,121510.0,121500.0,0.02472631]
[1760074113857,0.39645322,121510.0,121500.0,0.02605198]
[1760074114906,0.16377322,121510.0,121500.0,0.02605198]
[1760074115084,0.39641322,121510.0,121500.0,0.02605198]
[1760074116904,0.67917182,121510.0,121500.0,0.02605198]
[1760074117112,0.91181182,121510.0,121500.0,0.00132567]
[1760074117560,0.39641322,121510.0,121500.0,0.00132567]
[1760074118216,0.47641002,121510.0,121500.0,0.00132567]
[1760074118470,0.91181182,121510.0,121500.0,0.00132567]
[1760074118911,0.39641322,121510.0,121500.0,0.00132567]
[1760074119139,0.4045334,121510.0,121500.0,0.00132567]
[1760074122201,1.03500483,121510.0,121500.0,0.00132567]
[1760074122415,1.3661933,121510.0,121500.0,0.00132567]
[1760074122615,1.4461901,121510.0,121500.0,0.00132567]
[1760074122826,1.243702,121510.0,121500.0,0.00132567]
[1760074123032,1.49411476,121510.0,121500.0,0.00132567]
[1760074123657,1.49427476,121510.0,121500.0,0.00132567]
[1760074123855,1.50290792,121510.0,121500.0,0.00132567]
[1760074124372,1.50390792,121510.0,121500.0,0.00132567]
[1760074124801,1.50490792,121510.0,121500.0,0.00132567]
[1760074126970,1.19211112,121510.0,121500.0,0.00132567]
[1760074127166,1.96303112,121510.0,121500.0,0.00132567]
[1760074127384,1.19211112,121510.0,121500.0,0.00132567]
[1760074127586,2.19579112,121510.0,121500.0,0.00132567]
[1760074127763,1.19211112,121510.0,121500.0,0.00132567]
[1760074127994,1.24979515,121510.0,121500.0,0.00132567]
[1760074128195,2.25347515,121510.0,121500.0,0.00132567]
[1760074128602,1.24979515,121510.0,121500.0,0.00132567]
[1760074128786,2.25355515,121510.0,121500.0,0.00132567]
[1760074129187,1.24979515,121510.0,121500.0,0.00132567]
[1760074129432,2.25355515,121510.0,121500.0,0.00132567]
[1760074129583,2.25255515,121510.0,121500.0,0.00132567]
[1760074130221,1.19111112,121510.0,121500.0,0.00132567]
[1760074130398,2.17705937,121510.0,121500.0,0.00132567]
[1760074131081,1.51895761,121510.0,121500.0,0.00132567]
[1760074131258,1.85508235,121510.0,121500.0,0.00132567]
[1760074131418,1.83735761,121510.0,121500.0,0.00132567]
[1760074131623,1.83635761,121510.0,121500.0,0.00132567]
[1760074132031,1.83835761,121510.0,121500.0,0.00132567]
[1760074132634,1.83735761,121510.0,121500.0,0.00132567]
[1760074132948,1.17627761,121510.0,121500.0,0.00132567]
[1760074133118,1.91735441,121510.0,121500.0,0.00132567]
[1760074133520,1.91635441,121510.0,121500.0,0.00132567]
[1760074134048,0.62972711,121510.0,121500.0,0.00132567]
[1760074134250,1.29076711,121510.0,121500.0,0.00132567]
[1760074134928,1.28213395,121510.0,121500.0,0.00132567]
[1760074135313,0.6210893,121510.0,121500.0,0.00132567]
[1760074135524,0.60568508,121510.0,121500.0,0.00132567]
[1760074135728,1.2590737,121510.0,121500.0,0.00132567]
[1760074135937,1.2600737,121510.0,121500.0,0.00132567]
[1760074137594,1.25709546,121510.0,121500.0,0.00132567]
[1760074138025,1.26478736,121510.0,121500.0,0.00132567]
[1760074138248,1.25709546,121510.0,121500.0,0.00132567]
[1760074139332,1.2600737,121510.0,121500.0,0.00132567]
[1760074139780,0.5989937,121510.0,121500.0,0.00132567]
[1760074140007,1.2600337,121510.0,121500.0,0.00132567]
[1760074140206,1.28311067,121510.0,121500.0,0.00132567]
[1760074140944,0.62207067,121510.0,121500.0,0.00132567]
[1760074141150,1.05039067,121510.0,121500.0,0.00132567]
[1760074141388,1.28311067,121510.0,121500.0,0.00132567]
[1760074141603,1.05039067,121510.0,121500.0,0.00132567]
[1760074141844,1.28315067,121510.0,121500.0,0.00132567]
[1760074142055,1.12492397,121510.0,121500.0,0.00132567]
[1760074142270,1.35768397,121510.0,121500.0,0.00132567]
[1760074143163,1.28315067,121510.0,121500.0,0.00132567]
[1760074143886,1.05039067,121510.0,121500.0,0.00132567]
[1760074144150,0.67919352,121510.0,121500.0,0.00132567]
[1760074144403,0.91191352,121510.0,121500.0,0.00132567]
[1760074144641,0.67919352,121510.0,121500.0,0.00132567]
[1760074144858,0.91191352,121510.0,121500.0,0.00132567]
[1760074147758,0.90893528,121510.0,121500.0,0.00132567]
[1760074150918,0.90889528,121510.0,121500.0,0.00132567]
[1760074153798,0.67621528,121510.0,121500.0,0.00132567]
[1760074154017,0.90885528,121510.0,121500.0,0.00132567]
[1760074160155,0.90785528,121510.0,121500.0,0.00132567]
[1760074160426,0.90781528,121510.0,121500.0,0.00132567]
[1760074162160,0.90781528,121510.0,121490.0,0.16460616]
[1760074162305,0.90781528,121510.0,121490.0,0.18063616]
[1760074163724,0.16460905,121500.0,121490.0,0.15249616]
[1760074163934,0.39716905,121500.0,121490.0,0.15249616]
[1760074164677,0.16460905,121500.0,121490.0,0.15249616]
[1760074164879,0.39716905,121500.0,121490.0,0.15249616]
[1760074165678,0.16460905,121500.0,121490.0,0.15249616]
[1760074165827,0.39716905,121500.0,121490.0,0.1646226]
[1760074167508,0.39716905,121500.0,121490.0,0.1656226]
[1760074169300,0.39716905,121500.0,121490.0,0.16613659]
[1760074170366,0.23256,121500.0,121490.0,0.16613659]
[1760074170578,0.23256,121500.0,121490.0,0.18216659]
[1760074170918,0.23256,121500.0,121490.0,0.16513659]
[1760074171325,0.23256,121500.0,121490.0,0.16613659]
[1760074172090,0.23256,121500.0,121490.0,0.68153519]
[1760074173119,0.23256,121500.0,121490.0,0.68053519]
[1760074173326,0.23256,121500.0,121490.0,0.68153519]
[1760074173537,0.39716905,121500.0,121490.0,0.68153519]
[1760074173742,0.39716905,121500.0,121490.0,0.68253519]
[1760074175081,0.39716905,121500.0,121490.0,0.16713659]
[1760074175511,0.39716905,121500.0,121490.0,0.55370772]
[1760074175725,0.39708905,121500.0,121490.0,0.55370772]
[1760074177073,0.16460905,121500.0,121490.0,0.38908512]
[1760074177294,0.39708905,121500.0,121490.0,0.38908512]
[1760074178592,0.16460905,121500.0,121490.0,0.55370772]
[1760074178826,0.39708905,121500.0,121490.0,0.55370772]
[1760074180280,0.39708905,121500.0,121490.0,0.16713659]
[1760074180459,0.39708905,121500.0,121490.0,0.55370772]
[1760074180661,0.39708905,121500.0,121490.0,0.16713659]
[1760074180863,0.39708905,121500.0,121490.0,0.55370772]
[1760074181015,0.39704905,121500.0,121490.0,0.55370772]
[1760074181211,0.39704905,121500.0,121490.0,0.16713659]
[1760074181418,0.39704905,121500.0,121490.0,0.00251399]
[1760074182006,0.39697487,121500.0,121490.0,0.00251399]
[1760074182747,0.16460905,121500.0,121490.0,0.00251399]
[1760074182956,0.39704905,121500.0,121490.0,0.00251399]
[1760074183178,0.16460905,121500.0,121490.0,0.00251399]
[1760074183385,0.39704905,121500.0,121490.0,0.00251399]
[1760074183737,0.39704905,121500.0,121490.0,0.00151399]
[1760074184100,0.39704905,121500.0,121490.0,0.00251399]
[1760074184429,0.39704905,121500.0,121490.0,0.00151399]
[1760074184634,0.39704905,121500.0,121490.0,0.00251399]
[1760074185437,0.16460905,121500.0,121490.0,0.16713659]
[1760074185690,0.66068,121500.0,121490.0,0.58200772]
[1760074186184,0.66068,121500.0,121490.0,0.19543659]
[1760074186423,0.66068,121500.0,121490.0,0.58200772]
[1760074186707,0.82528905,121500.0,121490.0,0.58200772]
[1760074187855,1.21186018,121500.0,121490.0,0.16713659]
[1760074188069,1.05945698,121500.0,121490.0,0.00251399]
[1760074188254,1.21186018,121500.0,121490.0,0.00251399]
[1760074190580,0.82528905,121500.0,121490.0,0.00251399]
[1760074190778,1.21186018,121500.0,121490.0,0.00251399]
[1760074196606,0.59288905,121500.0,121490.0,0.00251399]
[1760074196805,0.82528905,121500.0,121490.0,0.16713659]
[1760074197802,0.16460905,121500.0,121490.0,0.00251399]
[1760074197956,0.16460905,121500.0,121490.0,0.18314659]
[1760074198151,0.82528905,121500.0,121490.0,0.19508659]
[1760074198571,0.82528905,121500.0,121490.0,0.00251399]
[1760074198572,0.59288905,121500.0,121490.0,0.00251399]
[1760074198776,0.82528905,121500.0,121490.0,0.00251399]
[1760074202369,0.97946018,121500.0,121490.0,0.00251399]
[1760074202571,1.21186018,121500.0,121490.0,0.00251399]
[1760074203106,0.97946018,121500.0,121490.0,0.00251399]
[1760074203329,1.21186018,121500.0,121490.0,0.00251399]
[1760074203539,0.82528905,121500.0,121490.0,0.00251399]
[1760074204388,0.59288905,121500.0,121490.0,0.00251399]
[1760074204608,0.82528905,121500.0,121490.0,0.00251399]
[1760074205520,1.21186018,121500.0,121490.0,0.00251399]
[1760074206975,0.97946018,121500.0,121490.0,0.00251399]
[1760074207232,1.21186018,121500.0,121490.0,0.00251399]
[1760074207437,0.97946018,121500.0,121490.0,0.00251399]
[1760074207645,1.21186018,121500.0,121490.0,0.00251399]
[1760074208450,1.21186018,121500.0,121490.0,0.00151399]
[1760074208667,1.59843131,121500.0,121490.0,0.00051399]
[1760074210961,1.21186018,121500.0,121490.0,0.00051399]
[1760074211212,1.59843131,121500.0,121490.0,0.00051399]
[1760074213170,1.60873598,121500.0,121490.0,0.00051399]
[1760074213547,1.59843131,121500.0,121490.0,0.00051399]
[1760074216104,1.68155337,121500.0,121490.0,0.00051399]
[1760074216314,1.70471304,121500.0,121490.0,0.00051399]
[1760074216518,1.47231304,121500.0,121490.0,0.00051399]
[1760074216725,1.70471304,121500.0,121490.0,0.00051399]
[1760074217146,2.19888417,121500.0,121490.0,0.00051399]
[1760074217422,2.43128417,121500.0,121490.0,0.00051399]
[1760074217635,2.19888417,121500.0,121490.0,0.00051399]
[1760074217843,2.43128417,121500.0,121490.0,0.00051399]
[1760074218047,2.19888417,121500.0,121490.0,0.00051399]
[1760074218263,2.54143287,121500.0,121490.0,0.00051399]
[1760074220074,2.30903287,121500.0,121490.0,0.00051399]
[1760074220183,2.46143607,121500.0,121490.0,0.00051399]
[1760074220423,1.41418494,121500.0,121490.0,0.00051399]
[1760074220650,2.07490494,121500.0,121490.0,0.00051399]
[1760074221120,2.08311959,121500.0,121490.0,0.00051399]
[1760074222623,2.05296769,121500.0,121490.0,0.00051399]
[1760074223570,2.11098854,121500.0,121490.0,0.00051399]
[1760074224246,2.11102854,121500.0,121490.0,0.00051399]
[1760074225076,2.05300769,121500.0,121490.0,0.00051399]
[1760074226023,1.39224769,121500.0,121490.0,0.00051399]
[1760074226635,1.96736769,121500.0,121490.0,0.00051399]
[1760074226769,2.05300769,121500.0,121490.0,0.00051399]
[1760074227445,1.27986543,121500.0,121490.0,0.00051399]
[1760074227656,2.05300769,121500.0,121490.0,0.00051399]
[1760074229590,1.82056769,121500.0,121490.0,0.00051399]
[1760074229792,2.05299685,121500.0,121490.0,0.00051399]
[1760074230830,1.82055685,121500.0,121490.0,0.00051399]
[1760074230970,2.05299685,121500.0,121490.0,0.00051399]
[1760074231775,2.05597509,121500.0,121490.0,0.00051399]
[1760074232355,1.97033509,121500.0,121490.0,0.00051399]
[1760074232611,2.05597509,121500.0,121490.0,0.00151399]
[1760074232818,2.05597509,121500.0,121490.0,0.00051399]
[1760074233600,2.04056398,121500.0,121490.0,0.00051399]
[1760074233807,2.05596177,121500.0,121490.0,0.00051399]
[1760074234026,2.05596177,121500.0,121490.0,0.00151399]
[1760074235354,1.39520177,121500.0,121490.0,0.00151399]
[1760074235554,1.56612825,121500.0,121490.0,0.00151399]
[1760074235761,1.56612825,121500.0,121490.0,0.00251399]
[1760074235968,1.79856825,121500.0,121490.0,0.00251399]
[1760074236576,1.13772825,121500.0,121490.0,0.00251399]
[1760074236781,1.79856825,121500.0,121490.0,0.00251399]
[1760074237628,0.62205951,121500.0,121490.0,0.00251399]
[1760074237831,1.79856825,121500.0,121490.0,0.00251399]
[1760074238030,1.56315001,121500.0,121490.0,0.00251399]
[1760074238239,1.79559001,121500.0,121490.0,0.00251399]
[1760074239545,1.56315001,121500.0,121490.0,0.00251399]
[1760074239762,1.79559001,121500.0,121490.0,0.00251399]
[1760074239996,1.56315001,121500.0,121490.0,0.00251399]
[1760074240227,1.79559001,121500.0,121490.0,0.00251399]
[1760074240453,1.79559443,121500.0,121490.0,0.00251399]
[1760074243028,1.79857267,121500.0,121490.0,0.00251399]
[1760074243646,1.28290393,121500.0,121490.0,0.00251399]
[1760074243844,1.79857267,121500.0,121490.0,0.00251399]
[1760074246130,1.56613267,121500.0,121490.0,0.00251399]
[1760074246983,1.61933586,121500.0,121490.0,0.00251399]
[1760074247193,1.78394491,121500.0,121490.0,0.00251399]
[1760074248057,1.7762346,121500.0,121490.0,0.00251399]
[1760074248263,1.78395479,121500.0,121490.0,0.00251399]
[1760074249555,1.55151479,121500.0,121490.0,0.00251399]
[1760074249766,1.78395479,121500.0,121490.0,0.00251399]
[1760074250931,1.56789539,121500.0,121490.0,0.00251399]
[1760074251143,1.78395479,121500.0,121490.0,0.00251399]
[1760074252260,1.78097655,121500.0,121490.0,0.00251399]
[1760074252743,1.80470544,121500.0,121490.0,0.00251399]
[1760074254374,1.78097655,121500.0,121490.0,0.00151399]
[1760074255681,1.78097655,121500.0,121490.0,0.00251399]
[1760074256924,1.79876374,121500.0,121490.0,0.00251399]
[1760074257267,1.80174198,121500.0,121490.0,0.00251399]
[1760074257713,1.56930198,121500.0,121490.0,0.00251399]
[1760074257915,1.80174198,121500.0,121490.0,0.00251399]
[1760074258229,1.83189388,121500.0,121490.0,0.00251399]
[1760074258372,1.85562228,121500.0,121490.0,0.00251399]
[1760074259167,1.85264404,121500.0,121490.0,0.00251399]
[1760074259638,1.93264084,121500.0,121490.0,0.00251399]
[1760074260370,1.93557908,121500.0,121490.0,0.00251399]
[1760074260822,1.93561908,121500.0,121490.0,0.00251399]
[1760074261425,1.93561908,121500.0,121490.0,0.00151399]
[1760074261659,1.93561908,121500.0,121490.0,0.00051399]
[1760074262186,1.74621339,121500.0,121490.0,0.00051399]
[1760074262393,2.17461339,121500.0,121490.0,0.00051399]
[1760074262840,1.94217339,121500.0,121490.0,0.00051399]
[1760074263269,2.17461339,121500.0,121490.0,0.00051399]
[1760074265689,2.17462832,121500.0,121490.0,0.00051399]
[1760074265902,2.25462512,121500.0,121490.0,0.00051399]
[1760074268688,1.73895638,121500.0,121490.0,0.00051399]
[1760074268911,1.94218832,121500.0,121490.0,0.00051399]
[1760074269138,2.17462832,121500.0,121490.0,0.00051399]
[1760074270035,2.61952832,121500.0,121490.0,0.00051399]
[1760074271243,2.6041016,121500.0,121490.0,0.00051399]
[1760074271466,2.61952459,121500.0,121490.0,0.00051399]
[1760074272376,2.69952139,121500.0,121490.0,0.00051399]
[1760074272825,2.18385265,121500.0,121490.0,0.00051399]
[1760074273050,2.69952139,121500.0,121490.0,0.00051399]
[1760074273274,2.27680459,121500.0,121490.0,0.00051399]
[1760074274590,1.61596459,121500.0,121490.0,0.00051399]
[1760074274795,2.27680459,121500.0,121490.0,0.00051399]
[1760074275383,2.04436459,121500.0,121490.0,0.00051399]
[1760074275661,2.27680459,121500.0,121490.0,0.00051399]
[1760074275827,2.35680139,121500.0,121490.0,0.00051399]
[1760074277232,2.12436139,121500.0,121490.0,0.00051399]
[1760074277694,2.35680139,121500.0,121490.0,0.00051399]
[1760074279074,2.35679512,121500.0,121490.0,0.00051399]
[1760074280145,2.12436025,121500.0,121490.0,0.00051399]
[1760074280354,2.35680025,121500.0,121490.0,0.00051399]
[1760074281015,2.35680154,121500.0,121490.0,0.00051399]
[1760074281347,2.12436154,121500.0,121490.0,0.00051399]
[1760074281703,2.35680154,121500.0,121490.0,0.00051399]
[1760074282047,2.19513028,121500.0,121490.0,1e-08]
[1760074282242,2.52800016,121500.0,121490.0,1e-08]
[1760074283173,2.29556016,121500.0,121490.0,1e-08]
[1760074283591,2.52800016,121500.0,121490.0,1e-08]
[1760074284062,2.29556016,121500.0,121490.0,1e-08]
[1760074284270,2.50444224,121500.0,121490.0,1e-08]
[1760074285805,2.18636224,121500.0,121490.0,1e-08]
[1760074286040,1.84360224,121500.0,121490.0,1e-08]
[1760074286260,2.84724224,121500.0,121490.0,1e-08]
[1760074288372,1.3279335,121500.0,121490.0,1e-08]
[1760074288612,2.3315735,121500.0,121490.0,1e-08]
[1760074288838,1.5906967,121500.0,121490.0,1e-08]
[1760074289055,1.96446164,121500.0,121490.0,1e-08]
[1760074289262,2.17470474,121500.0,121490.0,1e-08]
[1760074290110,2.19690164,121500.0,121490.0,1e-08]
[1760074291350,1.19326164,121500.0,121490.0,1e-08]
[1760074291659,2.19607469,121500.0,121490.0,1e-08]
[1760074292589,2.5417361,121500.0,121490.0,1e-08]
[1760074292767,2.7741761,121500.0,121490.0,1e-08]
[1760074292967,2.80385117,121500.0,121490.0,1e-08]
[1760074293151,2.5417361,121500.0,121490.0,1e-08]
[1760074293356,2.77417716,121500.0,121490.0,1e-08]
[1760074294362,2.82885222,121500.0,121490.0,1e-08]
[1760074294916,2.59641222,121500.0,121490.0,1e-08]
[1760074295117,2.79918048,121500.0,121490.0,1e-08]
[1760074295821,2.56674048,121500.0,121490.0,1e-08]
[1760074296225,2.79620224,121500.0,121490.0,1e-08]
[1760074296541,1.79256224,121500.0,121490.0,1e-08]
[1760074296783,2.79620224,121500.0,121490.0,1e-08]
[1760074297561,2.92558594,121500.0,121490.0,1e-08]
[1760074297938,2.95526101,121500.0,121490.0,1e-08]
[1760074301250,2.95823925,121500.0,121490.0,1e-08]
[1760074301584,1.95459925,121500.0,121490.0,1e-08]
[1760074301840,2.66336658,121500.0,121490.0,1e-08]
[1760074302064,2.89580658,121500.0,121490.0,1e-08]
[1760074303268,2.75569062,121500.0,121490.0,1e-08]
[1760074304876,1.75205062,121500.0,121490.0,1e-08]
[1760074305124,2.75569062,121500.0,121490.0,1e-08]
[1760074306047,0.56117754,121500.0,121490.0,1e-08]
[1760074306289,1.03210125,121500.0,121490.0,1e-08]
[1760074306539,0.46279795,121500.0,121490.0,0.18072261]
[1760074306768,0.67173402,121500.0,121490.0,0.05232001]
[1760074307000,1.22325013,121500.0,121490.0,0.21694261]
[1760074307238,0.43141824,121500.0,121490.0,0.21694261]
[1760074307457,0.66405824,121500.0,121490.0,0.21694261]
[1760074308138,1.21557435,121500.0,121490.0,0.21694261]
[1760074309040,1.21553435,121500.0,121490.0,0.19273261]